fUSD/lending_fUSD_20240101
["ID","MTS","AMOUNT","RATE_DAILY","PERIOD"]
[309784194,1704117077636,-26235.02258,0.0004397,2]
[309784195,1704117077646,-429.8210077,0.0004397,2]
[309784196,1704117077656,-108306.0306887,0.0004397,2]
[309784197,1704117077665,-7577.1400379,0.0004397,2]
[309784198,1704117077675,-500.0,0.00043972,10]
[309784199,1704117077684,-937.19,0.00043983,2]
[309784200,1704117077693,-937.19,0.00043983,2]
[309784201,1704117077703,-937.19,0.00043983,2]
[309784202,1704117077712,-399.99,0.00043983,2]
[309784203,1704117077721,-937.19,0.00043983,2]
[309784204,1704117077730,-399.99,0.00043983,2]
[309784205,1704117077740,-937.19,0.00043983,2]
[309784206,1704117077749,-399.99,0.00043983,2]
[309784207,1704117077759,-399.99,0.00043983,2]
[309784208,1704117077768,-937.19,0.00043983,2]
[309784209,1704117077778,-937.19,0.00043983,2]
[309784210,1704117077787,-399.99,0.00043983,2]
[309784211,1704117077796,-937.19,0.00043983,2]
[309784212,1704117077806,-399.99,0.00043983,2]
[309784213,1704117077815,-399.99,0.00043983,2]
[309784214,1704117077824,-937.19,0.00043983,2]
[309784215,1704117077834,-208.65,0.00043983,2]
[309784216,1704117077844,-399.99,0.00043983,2]
[309784217,1704117077853,-392.1,0.00043983,2]
[309784218,1704117077863,-500.0,0.00043987,37]
[309784219,1704117077872,-4527.0,0.0004399,2]
[309784220,1704117077881,-333.33333,0.00043998,10]
[309784221,1704117077890,-313.18352574,0.00044,3]
[309784222,1704117077899,-800.0,0.00044,2]
[309784223,1704117077909,-2529.49152702,0.00044,7]
[309784224,1704117077919,-643616.38164559,0.00044,7]
[309784225,1704117077929,-159515.39834761,0.00044,2]
[309784226,1704117077938,-6622.16666976,0.00044,120]
[309784227,1704117077948,-3000.0,0.00044,32]
[309784228,1704117077958,-3000.0,0.0004401,32]
[309784229,1704117077968,-5959.203777,0.0004402,32]
[309784230,1704117077977,-5443.41,0.00044044,7]
[309784231,1704117077987,-5443.41,0.00044044,7]
[309784232,1704117077996,-159.55,0.0004409,60]
[309784233,1704117078007,-172.34,0.0004409,60]
[309784234,1704117078017,-333.33333,0.00044098,8]
[309784235,1704117078027,-1825.524159,0.000441,14]
[309784236,1704117078036,-750.0,0.00044109,10]
[309784237,1704117078046,-185.3,0.00044137,2]
[309784238,1704117078055,-376.968714,0.0004417,2]
[309784239,1704117078065,-2110.0,0.0004419,15]
[309784240,1704117078075,-333.33333,0.00044198,10]
[309784241,1704117078084,-1000.0,0.000442,14]
[309784242,1704117078094,-443.04,0.00044231,2]
[309784243,1704117078104,-1047.21510866,0.00044246,10]
[309784244,1704117078115,-333.33333,0.00044298,8]
[309784245,1704117078124,-1000.0,0.000443,14]
[309784246,1704117078133,-5443.41,0.00044317,7]
[309784247,1704117078151,-5443.41,0.00044317,7]
[309784248,1704117078171,-500.0,0.00044388,30]
[309784249,1704117078188,-150.0,0.00044394,2]
[309784250,1704117078209,-806.05,0.00044394,2]
[309784251,1704117078226,-160.61,0.00044394,2]
[309784252,1704117078243,-406.8,0.00044394,2]
[309784253,1704117078263,-406.8,0.00044394,2]
[309784254,1704117078279,-406.8,0.00044394,2]
[309784255,1704117078301,-406.8,0.00044394,2]
[309784256,1704117078319,-406.8,0.00044394,2]
[309784257,1704117078336,-406.8,0.00044394,2]
[309784258,1704117078357,-333.33333,0.00044398,10]
[309784259,1704117078373,-161.25,0.000444,7]
[309784260,1704117078389,-5200.0,0.000444,10]
[309784261,1704117078404,-5200.0,0.000444,29]
[309784262,1704117078417,-5200.0,0.000444,30]
[309784263,1704117078433,-1000.0,0.000444,14]
[309784264,1704117078447,-156.20450379,0.0004444,10]
[309784265,1704117078461,-171.0,0.0004445,2]
[309784266,1704117078476,-2000.0,0.00044467,3]
[309784267,1704117078490,-159.55,0.00044495,60]
[309784268,1704117078504,-333.33333,0.00044498,8]
[309784269,1704117078518,-2144.42768707,0.000445,120]
[309784270,1704117078533,-1000.0,0.000445,14]
[309784271,1704117078547,-150.72,0.00044521,2]
[309784272,1704117078561,-416.59,0.00044548,2]
[309784273,1704117078575,-153.19,0.00044548,2]
[309784274,1704117078588,-150.0,0.00044548,2]
[309784275,1704117078605,-520.11,0.00044548,2]
[309784276,1704117078620,-233.99,0.00044548,2]
[309784277,1704117078634,-313.25,0.00044548,2]
[309784278,1704117078648,-150.47,0.00044548,2]
[309784279,1704117078662,-150.0,0.00044548,2]
[309784280,1704117078676,-150.0,0.00044548,2]
[309784281,1704117078691,-416.59,0.00044548,2]
[309784282,1704117078705,-520.11,0.00044548,2]
[309784283,1704117078719,-150.0,0.00044548,2]
[309784284,1704117078733,-313.25,0.00044548,2]
[309784285,1704117078747,-150.0,0.00044548,2]
[309784286,1704117078762,-520.11,0.00044548,2]
[309784287,1704117078776,-415.99,0.00044548,2]
[309784288,1704117078790,-313.25,0.00044548,2]
[309784289,1704117078805,-150.0,0.00044548,2]
[309784290,1704117078820,-520.11,0.00044548,2]
[309784291,1704117078834,-313.25,0.00044548,2]
[309784292,1704117078848,-150.0,0.00044548,2]
[309784293,1704117078862,-283.79,0.00044548,2]
[309784294,1704117078876,-150.0,0.00044548,2]
[309784295,1704117078891,-520.11,0.00044548,2]
[309784296,1704117078905,-406.8,0.00044548,2]
[309784297,1704117078919,-520.11,0.00044548,2]
[309784298,1704117078933,-406.8,0.00044548,2]
[309784299,1704117078947,-520.11,0.00044548,2]
[309784300,1704117078960,-520.11,0.00044548,2]
[309784301,1704117078974,-510.8,0.00044548,2]
[309784302,1704117078990,-406.8,0.00044548,2]
[309784303,1704117079004,-406.8,0.00044548,2]
[309784304,1704117079019,-406.8,0.00044548,2]
[309784305,1704117079034,-406.8,0.00044548,2]
[309784306,1704117079049,-406.8,0.00044548,2]
[309784307,1704117079065,-406.8,0.00044548,2]
[309784308,1704117079080,-406.8,0.00044548,2]
[309784309,1704117079095,-406.8,0.00044548,2]
[309784310,1704117079111,-406.8,0.00044548,2]
[309784311,1704117079126,-406.8,0.00044548,2]
[309784312,1704117079259,-406.8,0.00044548,2]
[309784313,1704117079272,-406.8,0.00044548,2]
[309784314,1704117079282,-22403.65813538,0.00044551,2]
[309784315,1704117079291,-501.33562406,0.00044567,5]
[309784316,1704117079301,-161.07289006,0.00044575,30]
[309784317,1704117079311,-500.0,0.00044575,30]
[309784318,1704117079321,-539.48238604,0.00044575,30]
[309784319,1704117079330,-472.02727687,0.00044575,30]
[309784320,1704117079339,-236.72191012,0.00044575,30]
[309784321,1704117079348,-204518.65480825,0.00044584,2]
[309784322,1704117079358,-906.42749427,0.00044584,2]
[309784323,1704117079368,-17315.07250601,0.0004459,17]
[309784324,1704117079377,-5443.41,0.0004459,7]
[309784325,1704117079386,-5443.41,0.0004459,7]
[309784326,1704117079396,-333.33333,0.00044598,10]
[309784327,1704117079406,-1000.0,0.000446,20]
[309784328,1704117079415,-1000.0,0.000446,2]
[309784329,1704117079424,-1960.690697,0.000446,20]
[309784330,1704117079434,-1960.690697,0.000446,20]
[309784331,1704117079443,-2000.0,0.000446,2]
[309784332,1704117079452,-1000.0,0.000446,15]
[309784333,1704117079461,-256.341364,0.000446,9]
[309784334,1704117079471,-1293.9847346,0.000446,9]
[309784335,1704117079482,-304.125465,0.000446,20]
[309784336,1704117079492,-304.125466,0.000446,20]
[309784337,1704117079501,-5000.0,0.00044612,21]
[309784338,1704117079511,-3625.9167292,0.0004466,2]
[309784339,1704117079521,-2756.0045417,0.0004466,2]
[309784340,1704117079530,-20165.3427927,0.0004466,2]
[309784341,1704117079540,-429.8210077,0.0004466,2]
[309784342,1704117079550,-83248.5746373,0.0004466,2]
[309784343,1704117079559,-5847.2721912,0.0004466,2]
[309784344,1704117079569,-500.0,0.0004467,3]
[309784345,1704117079579,-400.0,0.0004467,3]
[309784346,1704117079589,-1269.35912015,0.00044678,20]
[309784347,1704117079603,-200.0,0.0004468,2]
[309784348,1704117079613,-204.30056541,0.0004468,2]
[309784349,1704117079623,-200.0,0.0004468,2]
[309784350,1704117079633,-200.0,0.0004468,2]
[309784351,1704117079642,-2054249.03373569,0.0004469,18]
[309784352,1704117079652,-207.0,0.0004469,30]
[309784353,1704117079661,-205.0,0.0004469,30]
[309784354,1704117079672,-2042.0,0.0004469,10]
[309784355,1704117079681,-1017.58699512,0.0004469,30]
[309784356,1704117079691,-206.0,0.0004469,30]
[309784357,1704117079700,-1008.65432073,0.0004469,10]
[309784358,1704117079710,-2110.0,0.0004469,15]
[309784359,1704117079719,-186.67690597,0.0004469,2]
[309784360,1704117079730,-333.33333,0.00044698,8]
[309784361,1704117079739,-184.63,0.000447,7]
[309784362,1704117079749,-250.0,0.0004475,30]
[309784363,1704117079758,-3900.0,0.000448,2]
[309784364,1704117079767,-2454.18014213,0.000448,20]
[309784365,1704117079780,-2532.4390729,0.00044838,2]
[309784366,1704117079789,-5443.41,0.00044863,7]
[309784367,1704117079798,-5443.41,0.00044863,7]
[309784368,1704117079808,-1438.9614167,0.00044869,2]
[309784369,1704117079818,-345.4837605,0.00044869,2]
[309784370,1704117079827,-1926.4592554,0.00044869,2]
[309784371,1704117079837,-1096.9139691,0.00044869,2]
[309784372,1704117079846,-14095.6630055,0.00044869,2]
[309784373,1704117079855,-8025.9832183,0.00044869,2]
[309784374,1704117079865,-429.8210077,0.00044869,2]
[309784375,1704117079874,-429.8210077,0.00044869,2]
[309784376,1704117079884,-58191.1185858,0.00044869,2]
[309784377,1704117079893,-33133.6625344,0.00044869,2]
[309784378,1704117079903,-4117.4043446,0.00044869,2]
[309784379,1704117079912,-2387.536498,0.00044869,2]
[309784380,1704117079923,-125944.80351809,0.00044888,8]
[309784381,1704117079933,-2812.60457941,0.000449,30]
[309784382,1704117079943,-230.48773429,0.000449,60]
[309784383,1704117079952,-19800.06039066,0.000449,20]
[309784384,1704117079962,-972.06380536,0.000449,2]
[309784385,1704117079971,-906.42749427,0.000449,2]
[309784386,1704117079981,-229.9287798,0.000449,2]
[309784387,1704117079990,-159.55,0.00044901,60]
[309784388,1704117080000,-500.0,0.00044931,90]
[309784389,1704117080010,-500.0,0.00044931,90]
[309784390,1704117080020,-500.0,0.00044931,90]
[309784391,1704117080030,-263.41426532,0.00044931,90]
[309784392,1704117080040,-500.0,0.00044936,30]
[309784393,1704117080051,-152.0,0.00044966,4]
[309784394,1704117080062,-267.3686828,0.00044969,2]
[309784395,1704117080072,-1956.303431,0.00044969,2]
[309784396,1704117080082,-429.8210077,0.00044969,2]
[309784397,1704117080093,-8076.206483,0.00044969,2]
[309784398,1704117080103,-657.6686513,0.00044969,2]
[309784399,1704117080114,-500.0,0.00044983,3]
[309784400,1704117080124,-5901.21802289,0.00044984,31]
[309784401,1704117080134,-300.0,0.00044987,39]
[309784402,1704117080144,-39659.0,0.0004499,2]
[309784403,1704117080154,-257.34191464,0.00044999,16]
[309784404,1704117080164,-500.0,0.00044999,15]
[309784405,1704117080174,-100000.0,0.00045,15]
[309784406,1704117080184,-5758.19460749,0.00045,15]
[309784407,1704117080193,-300.03875227,0.00045,14]
[309784408,1704117080204,-5058.41597766,0.00045,2]
[309784409,1704117080213,-1514.6380916,0.00045,4]
[309784410,1704117080223,-164.0,0.00045,2]
[309784411,1704117080233,-121036.91341963,0.00045,2]
[309784412,1704117080243,-155.0,0.00045,120]
[309784413,1704117080253,-940.89488619,0.00045,30]
[309784414,1704117080262,-7195.25547225,0.00045,30]
[309784415,1704117080273,-1322.84883944,0.00045,120]
[309784416,1704117080282,-300.0,0.00045,46]
[309784417,1704117080291,-985.41934999,0.00045,14]
[309784418,1704117080300,-190.28133656,0.00045,14]
[309784419,1704117080310,-6760.97528762,0.00045,4]
[309784420,1704117080319,-324.61570711,0.00045,20]
[309784421,1704117080329,-235.93340474,0.00045,30]
[309784422,1704117080338,-439.79393969,0.00045,30]
[309784423,1704117080349,-525.70931116,0.00045,3]
[309784424,1704117080359,-190.32694858,0.00045,30]
[309784425,1704117080368,-9000.0,0.00045,30]
[309784426,1704117080378,-462.37,0.00045,24]
[309784427,1704117080387,-10077.6646614,0.00045,16]
[309784428,1704117080397,-231734.88646072,0.00045,2]
[309784429,1704117080407,-15635.950622,0.00045,35]
[309784430,1704117080416,-970.84643642,0.00045,60]
[309784431,1704117080425,-601902.28576728,0.00045,5]
[309784432,1704117080672,-406991.08970166,0.00045,5]
[309784433,1704117080684,-429.59120042,0.00045,5]
[309784434,1704117080697,-22449.06265472,0.00045,5]
[309784435,1704117080708,-892.64804704,0.00045,5]
[309784436,1704117080720,-386.19889246,0.00045,5]
[309784437,1704117080732,-504.72256023,0.00045,5]
[309784438,1704117080802,-880.13175954,0.00045,5]
[309784439,1704117080814,-513.84877829,0.00045,5]
[309784440,1704117080830,-629.74077574,0.00045,5]
[309784441,1704117080842,-357.58454009,0.00045,5]
[309784442,1704117080854,-3884.44909944,0.00045,5]
[309784443,1704117080886,-14762.78439003,0.00045,5]
[309784444,1704117080897,-945.91508239,0.00045,5]
[309784445,1704117080919,-299.4389342,0.00038174,10]
[309784446,1704117080928,-260.0071699,0.00045,5]
[309784447,1704117080942,-11946.1767487,0.00045,5]
[309784448,1704117080954,-5082.3462746,0.00045,5]
[309784449,1704117080966,-1167.47500005,0.00045,5]
[309784450,1704117081022,-101847.1263442,0.00045,5]
[309784451,1704117081147,-406.8,0.00044548,2]
[309784452,1704117081157,-1655.66791071,0.00045,5]
[309784453,1704117081169,-1734.03922036,0.00045,5]
[309784454,1704117081181,-1558.93318069,0.00045,5]
[309784455,1704117081192,-665.88864,0.00045,5]
[309784456,1704117081305,-854.13879068,0.00023851,2]
[309784457,1704117081315,-203.68822932,0.00023851,2]
[309784458,1704117081328,-78.56543087,0.00023851,2]
[309784459,1704117081337,-898.17456913,0.00045,5]
[309784460,1704117081349,-5827.34435996,0.00045,5]
[309784461,1704117081362,-522.43009679,0.00045,5]
[309784462,1704117081375,-2609.10459364,0.00045,5]
[309784463,1704117081387,-550.69565633,0.00045,5]
[309784464,1704117081406,-577.2793438,0.00045,5]
[309784465,1704117081418,-418.84953567,0.00045,5]
[309784466,1704117081430,-406.10644676,0.00045,5]
[309784467,1704117081442,-499.4653158,0.00045,5]
[309784468,1704117081454,-412.4916,0.00045,5]
[309784469,1704117081467,-4651.0,0.00045,5]
[309784470,1704117081479,-599.27979208,0.00045,5]
[309784471,1704117082107,22000.0,0.00023,2]
[309784472,1704117082133,47260.65907928,0.00023,2]
[309784473,1704117082159,748143.33293165,0.00023,2]
[309784474,1704117085488,12302.41822266,0.00022999,2]
[309784475,1704117094623,10706.03173728,0.0002203,2]
[309784476,1704117115108,43794.19608015,0.00039174,30]
[309784477,1704117230010,10000.0,0.00023,2]
[309784478,1704117230034,93824.28634611,0.00023,2]
[309784479,1704117232600,20702.77878487,0.00039174,30]
[309784483,1704117259299,234.44519668,0.00022,2]
[309784484,1704117263750,204.95364533,0.0001,2]
[309784485,1704117357060,155.0,0.0001,2]
[309784486,1704117370997,155.0,0.0001,2]
[309784494,1704117786188,304.125466,0.00039156,30]
[309784501,1704118159920,4244.87201736,0.00039156,30]
[309784554,1704118232024,-257.65637086,0.00023849,2]
[309784555,1704118232034,-150.0,0.00023849,2]
[309784556,1704118232043,-181.9829291,0.0002385,2]
[309784557,1704118232053,-208.45821141,0.00023851,2]
[309784558,1704118232062,-541.47763723,0.00023851,2]
[309784559,1704118232072,-317.52614775,0.00025,5]
[309784560,1704118232082,-17338.18712238,0.00025,3]
[309784561,1704118232091,-155.0,0.000277,2]
[309784562,1704118232100,-483.7735,0.000277,2]
[309784563,1704118232110,-247.9150032,0.00029998,2]
[309784564,1704118232119,-499.99,0.00029998,2]
[309784565,1704118232128,-1429.33,0.00029998,20]
[309784566,1704118232137,-694.54837034,0.00029999,2]
[309784567,1704118232146,-561.70601719,0.000301,2]
[309784568,1704118232155,-276.97,0.00030757,2]
[309784569,1704118232165,-2588.27,0.00032397,2]
[309784570,1704118232176,-2000.0,0.00032397,2]
[309784571,1704118232185,-194.9,0.00032467,2]
[309784572,1704118232204,-291.26,0.0003253,2]
[309784573,1704118232216,-2691.08,0.00032606,2]
[309784574,1704118232226,-1000.0,0.00032633,2]
[309784575,1704118232237,-150.0,0.00032766,2]
[309784576,1704118232247,-166.3,0.00032877,15]
[309784577,1704118232257,-276.97,0.00033021,2]
[309784578,1704118232267,-1000.0,0.00034,4]
[309784579,1704118232276,-205.1705,0.00034699,2]
[309784580,1704118232286,-863.1973,0.00034699,2]
[309784581,1704118232297,-1535.0771,0.00034699,2]
[309784583,1704118232307,-1000.0,0.000347,2]
[309784585,1704118232316,-244.12958577,0.000347,7]
[309784587,1704118232326,-155.0,0.00034797,4]
[309784589,1704118232337,-383.24855968,0.00034797,4]
[309784591,1704118232346,-2652.14964199,0.00034797,4]
[309784593,1704118232356,-3316.86540737,0.00034797,4]
[309784594,1704118232366,-2261.73266431,0.00034797,4]
[309784596,1704118232376,-360.30605295,0.00034797,4]
[309784597,1704118232385,-403.27004487,0.00034797,4]
[309784598,1704118232395,-4263.48168177,0.00034797,4]
[309784599,1704118232405,-2855.71351532,0.00034798,4]
[309784601,1704118232424,-4898.94330571,0.00034798,4]
[309784603,1704118232434,-14263.04628616,0.00034799,4]
[309784605,1704118232445,-256.656,0.00034799,4]
[309784607,1704118232457,-403.414999,0.00034799,4]
[309784609,1704118232473,-250.0,0.00034799,4]
[309784628,1704118238278,-222.71937821,0.00027699,2]
[309784629,1704118238288,-348.4003,0.000347,7]
[309784630,1704118238297,-13777.41043732,0.00034799,4]
[309784631,1704118238488,-42028.99813162,0.00034799,4]
[309784632,1704118238501,-316.0037392,0.00034799,2]
[309784633,1704118238512,-3329.69816337,0.00034799,4]
[309784634,1704118238523,-34411.19057472,0.000348,2]
[309784635,1704118238537,-10177.65846587,0.000348,2]
[309784654,1704118241622,-5000.0271526,0.000348,2]
[309784657,1704118241634,-1796.607813,0.000348,2]
[309784681,1704118243053,-0.0034216,0.000348,2]
[309784698,1704118246096,-925.60213457,0.000348,2]
[309784699,1704118246206,-1638.4,0.000348,2]
[309784700,1704118246292,-599.27979208,0.000348,2]
[309784739,1704118686577,245.720113,0.00039157,30]
[309784740,1704118994448,-547.1,0.00026999,2]
[309784741,1704118999041,-11.56593267,0.00026999,2]
[309784742,1704119012977,155.0,0.00026999,2]
[309784743,1704119022010,283.29816887,0.00026999,2]
[309784744,1704119026205,854.13879068,0.00026999,2]
[309784745,1704119027896,282.25366019,0.00026999,2]
[309784746,1704119028981,156.62261898,0.00026999,2]
[309784747,1704119038001,257.12082861,0.00026999,2]
[309784748,1704119038022,26.17734026,0.00026999,2]
[309784749,1704119040201,854.13879068,0.00026999,2]
[309784750,1704119043897,281.55903911,0.00026999,2]
[309784751,1704119056010,270.31241412,0.00026999,2]
[309784752,1704119058193,335.70629224,0.00026999,2]
[309784753,1704119086348,1926.814012,0.00039157,30]
[309784825,1704119432175,-450.0,0.00027,3]
[309784827,1704119432185,-50.83538007,0.00030881,4]
[309784830,1704119432198,-478.74860988,0.00030881,4]
[309784831,1704119432208,-289.22,0.0003213,2]
[309784832,1704119432217,-150.0,0.00033873,2]
[309784833,1704119432226,-279.84,0.00033929,2]
[309784834,1704119432235,-159.46,0.00033989,2]
[309784835,1704119432244,-106.17717361,0.00034,4]
[309784836,1704119432260,-556.5846677,0.00034,4]
[309784837,1704119432272,-337.23815869,0.00034,4]
[309784838,1704119432281,-124.04884492,0.00034049,2]
[309784839,1704119432294,-32.84792321,0.00034049,2]
[309784840,1704119432304,-151.94,0.00034056,2]
[309784841,1704119432326,-163.97,0.00034056,15]
[309784842,1704119432336,-34.20713884,0.00034149,2]
[309784843,1704119432351,-765.79286116,0.00034149,2]
[309784844,1704119432361,-2242.56,0.00034205,2]
[309784845,1704119432371,-5198.2,0.0003424,2]
[309784846,1704119432381,-289.22,0.00034394,2]
[309784847,1704119432391,-200.0,0.00034475,2]
[309784848,1704119432401,-500.0,0.000346,2]
[309784849,1704119432411,-655.203,0.000346,2]
[309784850,1704119432420,-1658.2795,0.000346,2]
[309784851,1704119432430,-548.46720048,0.000346,2]
[309784852,1704119432447,-361.2919512,0.000346,2]
[309784853,1704119432464,-541.96004832,0.000346,2]
[309784854,1704119432474,-609.39387241,0.00034698,4]
[309784855,1704119432486,-241.0666558,0.00034698,4]
[309784856,1704119432496,-280.00826108,0.00034699,4]
[309784858,1704119432509,-496.10168245,0.00034699,4]
[309784860,1704119432520,-224.6358991,0.00034699,4]
[309784861,1704119432530,-89.13905025,0.000347,2]
[309784964,1704119439633,-500.0,0.000346,2]
[309784965,1704119439645,-338.51914975,0.000347,2]
[309784966,1704119439655,-1000.0,0.000347,2]
[309784967,1704119439665,-3375.94059527,0.000347,2]
[309784968,1704119439677,-437.26620473,0.000347,2]
[309784969,1704119439686,-529.64812917,0.000347,2]
[309784970,1704119439698,-480.258385,0.000347,2]
[309784971,1704119439799,-210855.86268069,0.000347,2]
[309785064,1704119440915,-1474.80909173,0.000347,2]
[309785081,1704119441069,-420.83000693,0.000347,2]
[309785084,1704119441091,-813.98482552,0.000347,2]
[309785280,1704119443322,-500.0,0.000347,2]
[309785290,1704119443429,-2985.75900081,0.000347,2]
[309785291,1704119443538,-4369.57856892,0.000347,2]
[309785292,1704119443552,-3541.91261479,0.000347,2]
[309785298,1704119446420,-807.09330018,0.00034699,4]
[309785299,1704119446485,-192.90669982,0.00034699,4]
[309785300,1704119446495,-494.3688287,0.000347,2]
[309785312,1704119586357,150.0,0.00039157,30]
[309785325,1704119983011,150.0,0.00039155,30]
[309785327,1704120301392,232.10612359,0.00026999,2]
[309785328,1704120301414,698.54765618,0.00026999,2]
[309785374,1704120637502,-450.0,0.00027,3]
[309785375,1704120637513,-119.5,0.00029368,2]
[309785376,1704120637609,-47.71225548,0.00029368,2]
[309785377,1704120637619,-328.87,0.00031446,2]
[309785378,1704120637629,-360.0,0.0003339,2]
[309785379,1704120637640,-2000.0,0.00033403,2]
[309785380,1704120637650,-163.39,0.00033406,15]
[309785381,1704120637660,-2000.0,0.00033413,2]
[309785382,1704120637670,-175.37,0.00033435,2]
[309785383,1704120637680,-1868.8,0.0003344,2]
[309785384,1704120637690,-16294.56124015,0.00033488,2]
[309785385,1704120637708,-268.71383754,0.00033488,2]
[309785386,1704120637721,-279.28395049,0.00033488,2]
[309785387,1704120637734,-4672.39097182,0.00033488,2]
[309785388,1704120637747,-1631.45,0.00033488,2]
[309785389,1704120637758,-232.5,0.00033506,2]
[309785390,1704120637769,-328.87,0.0003371,2]
[309785391,1704120637780,-177.6,0.00033714,2]
[309785392,1704120637790,-640.0,0.00033714,2]
[309785393,1704120637801,-157.60526944,0.00033745,2]
[309785394,1704120637812,-166.36,0.00033753,2]
[309785395,1704120637822,-3703.74514665,0.000339,2]
[309785396,1704120637882,-329.37664566,0.000339,2]
[309785397,1704120637894,-3543.51403869,0.000339,2]
[309785398,1704120637905,-158.7,0.00033903,2]
[309785399,1704120637915,-685.87,0.00033903,2]
[309785400,1704120637926,-1000.0,0.00034054,4]
[309785401,1704120637936,-5466.43383819,0.00034055,4]
[309785403,1704120637946,-499.99,0.00034056,2]
[309785404,1704120637957,-158.7,0.00034124,2]
[309785405,1704120637968,-158.85,0.0003428,2]
[309785406,1704120637978,-158.7,0.00034345,2]
[309785407,1704120637988,-150.0,0.00034409,2]
[309785408,1704120637999,-177.6,0.00034557,2]
[309785409,1704120638009,-158.7,0.00034565,2]
[309785410,1704120638020,-1428.15972802,0.00034597,4]
[309785411,1704120638031,-4224.3579,0.000346,2]
[309785412,1704120638042,-500.0,0.000346,2]
[309785414,1704120638052,-2855.42682149,0.000346,2]
[309785417,1704120638067,-495.79057678,0.000346,2]
[309785609,1704120640815,-393.75460173,0.000346,2]
[309785610,1704120640826,-213.83304827,0.00034698,4]
[309785611,1704120640838,-94.52184016,0.00034698,4]
[309785633,1704120642425,-438.05959932,0.00034698,4]
[309785634,1704120642436,-247.84850247,0.00034698,4]
[309785635,1704120642446,-155.3965756,0.00034698,4]
[309785636,1704120642456,-155.0,0.00034698,4]
[309785637,1704120642466,-286.76876919,0.00034698,4]
[309785638,1704120642476,-575.83909486,0.00034698,4]
[309785639,1704120642485,-1401.80644902,0.00034698,4]
[309785640,1704120642498,-968.01567537,0.00034698,4]
[309785641,1704120642724,-172.77644471,0.00034698,4]
[309785642,1704120642741,-394.73586984,0.00034698,4]
[309785643,1704120642751,-155.0,0.00034698,4]
[309785645,1704120642760,-297.88419299,0.00034698,4]
[309785647,1704120642773,-242.42658091,0.00034698,4]
[309785648,1704120642783,-161.6896003,0.00034698,4]
[309785649,1704120642792,-540.61688108,0.00034698,4]
[309785650,1704120642802,-250.67674749,0.00034698,4]
[309785651,1704120642812,-2127.62220755,0.00034698,4]
[309785652,1704120642821,-292.79385958,0.00034698,4]
[309785653,1704120642831,-1254.66975801,0.00034698,4]
[309785654,1704120642840,-414.83212548,0.00034698,4]
[309785655,1704120642850,-155.0,0.00034698,4]
[309785656,1704120642859,-388.66908496,0.00034698,4]
[309785657,1704120642869,-158.03340171,0.00034698,4]
[309785658,1704120642879,-220.02114209,0.00034698,4]
[309785659,1704120642889,-258.89187616,0.00034698,4]
[309785660,1704120642898,-155.0,0.00034698,4]
[309785661,1704120642908,-2132.49090172,0.00034698,4]
[309785662,1704120642917,-401.0343573,0.00034698,4]
[309785663,1704120642927,-5066.99298446,0.00034698,4]
[309785664,1704120642938,-155.0,0.00034698,4]
[309785665,1704120642947,-481.01435988,0.00034698,4]
[309785666,1704120642958,-530.36321761,0.00034698,4]
[309785667,1704120642968,-155.0,0.00034698,4]
[309785668,1704120642978,-190.92479167,0.00034698,4]
[309785669,1704120642988,-361.27435542,0.00034698,2]
[309785670,1704120642998,-2500.0,0.00034698,2]
[309785671,1704120643008,-4970.22515145,0.00034699,4]
[309785672,1704120643018,-4298.75116023,0.000347,4]